[Event "FRA-ch Youth U18 2018"]
[Site "Agen"]
[Date "2018.04.16"]
[Round "2"]
[White "Tourneur, Cloe"]
[Black "Belluire, Beatrice"]
[Result "0-1"]
[ECO "B23"]
[WhiteElo "1638"]
[BlackElo "1818"]
[Annotator "NA RC"]
[PlyCount "48"]
[EventDate "2018.??.??"]
[EventType "swiss"]
[EventCountry "FRA"]
[SourceTitle "playchess.com"]
[Source "ChessBase"]
[SourceQuality "1"]
[TimeControl "5400+30"]

1. e4 {[%emt 0:00:00]} c5 {[%emt 0:00:00]} 2. Nc3 {[%emt 0:00:00]} a6 {[%emt 0:00:01]} 3. f4 {[%emt 0:00:00]} e6 {[%emt 0:00:24]} 4. Nf3 {[%emt 0:00:00]} b5 {[%emt 0:00:21]} 5. g3 {[%emt 0:00:49]} Bb7 {[%emt 0:00:17]} 6. d3 {[%emt 0:00:28]} Nf6 {[%emt 0:07:41]} 7. Bg2 {[%emt 0:03:40]} d5 {[%emt 0:03:18]} 8. e5 {[%emt 0:06:03]} Nfd7 {[%emt 0:05:40]} 9. O-O {[%emt 0:02:02]} Be7 {[%emt 0:00:40]} 10. Qe2 {[%emt 0:03:44]} O-O {[%emt 0:05:48]} 11. f5 {[%emt 0:04:22]} exf5 {[%emt 0:18:20]} 12. e6 {[%emt 0:01:47]} Nb6 {[%emt 0:03:00]} 13. exf7+ {[%emt 0:07:43]} Rxf7 {[%emt 0:02:25]} 14. Ne5 {[%emt 0:10:15]} ({White should play} 14. Ng5 $1 $11 Bxg5 15. Bxg5) 14... Rf8 {[%emt 0:08:19]} 15. Bh3 {[%emt 0:03:38]} (15. a4 $15) 15... d4 {[%emt 0:01:56]} 16. Ne4 {[%emt 0:16:11]} Qd5 $16 {[%emt 0:05:07]} ({Not} 16... fxe4 $2 17. Be6+ Kh8 18. Rxf8+ Qxf8 19. Qh5 $18) (16... N8d7 $19 17. Nxd7 Qxd7) 17. Nf2 {[%emt 0:11:35]} Bd6 {[%emt 0:03:07]} 18. Re1 {[%emt 0:03:37]} Re8 {[%emt 0:00:57]} 19. Bf4 {[%emt 0:00:51]} Bxe5 {[%emt 0:05:27]} 20. Bxe5 {[%emt 0:01:25]} N8d7 {[%emt 0:00:07]} 21. Qh5 {[%emt 0:09:26]} Nxe5 {[%emt 0:01:50]} 22. Kf1 {[%emt 0:01:07]} g6 {[%emt 0:00:24]} 23. Qd1 {[%emt 0:02:00]} Nf3 {[%emt 0:00:27]} 24. Rxe8+ {[%emt 0:00:45]} Rxe8 {[%emt 0:00:05]} 0-1

[Event "FRA-ch Youth U18 2018"]
[Site "Agen"]
[Date "2018.04.16"]
[Round "3"]
[White "O'Sullivan, Thomas"]
[Black "Lahaderne, Romain"]
[Result "1-0"]
[ECO "E32"]
[WhiteElo "2291"]
[BlackElo "2068"]
[Annotator "NA RC"]
[PlyCount "83"]
[EventDate "2018.??.??"]
[EventType "swiss"]
[EventCountry "FRA"]
[SourceTitle "playchess.com"]
[Source "ChessBase"]
[SourceQuality "1"]
[TimeControl "5400+30"]

1. d4 {[%emt 0:00:00]} e6 {[%emt 0:00:21]} 2. c4 {[%emt 0:00:07]} Nf6 {[%emt 0:00:07]} 3. Nc3 {[%emt 0:00:29]} Bb4 {[%emt 0:00:45]} 4. Qc2 {[%emt 0:00:27]} O-O {[%emt 0:00:42]} 5. Nf3 {[%emt 0:00:21]} d6 {[%emt 0:12:29]} 6. g3 {[%emt 0:01:54] LiveBook: 67 Games} Bxc3+ {[%emt 0:02:17] E32: Nimzo-Indian: Classical (4 Qc2): 4...0-0} (6... b6 7. Bg2 Bb7 8. O-O Nbd7 9. b3 Qe7 10. Bb2 Bxc3 11. Qxc3 Ne4 12. Qc2 f5 13. Rad1 Rae8 14. d5 exd5 15. cxd5 Ndf6 16. Bxf6 Rxf6 17. Rd4 Rf7 18. e3 a5 19. a3 Ba6 20. Rc1 g5 {½-½ (37) Shankland,S (2666)-Caruana,F (2817) Saint Louis 2017}) 7. Qxc3 {[%emt 0:01:25]} Ne4 $146 {[%emt 0:02:51]} ({Predecessor:} 7... Nbd7 8. Bg2 Re8 9. O-O e5 10. b3 exd4 11. Nxd4 Nc5 12. Bb2 {1-0 (43) Popp,M (1970)-Ebner,J (1806) Germany 2005}) 8. Qc2 {[%emt 0:03:40]} f5 {[%emt 0:00:28]} 9. Bg2 {[%emt 0:00:07]} Nd7 {[%emt 0:12:00]} 10. O-O {[%emt 0:00:59]} Ndf6 {[%emt 0:01:36]} 11. b3 {[%emt 0:24:10]} c5 {[%emt 0:08:53]} 12. dxc5 {[%emt 0:07:08]} Nxc5 {[%emt 0:00:14]} 13. Be3 {[%emt 0:08:39]} Na6 {[%emt 0:04:39]} (13... Qc7 $14) 14. Rad1 {[%emt 0:04:56]} Qe7 {[%emt 0:07:17]} 15. Bg5 {[%emt 0:10:51]} h6 {[%emt 0:07:45]} 16. Bxf6 {[%emt 0:01:31]} Rxf6 {[%emt 0:00:25]} 17. Nd4 {[%emt 0:07:37]} e5 {[%emt 0:12:45]} 18. Nb5 {[%emt 0:00:10]} Nc7 {[%emt 0:01:09]} 19. Nc3 {[%emt 0:03:51]} Rb8 {[%emt 0:03:19]} 20. Rd3 {[%emt 0:04:02]} Bd7 {[%emt 0:05:11]} 21. Rfd1 {[%emt 0:01:52]} Bc6 $16 {[%emt 0:01:45]} 22. Qd2 {[%emt 0:00:48]} Rd8 {[%emt 0:03:40]} 23. Bd5+ {[%emt 0:05:52]} Kh7 {[%emt 0:02:27]} 24. Qe3 {[%emt 0:01:09]} Bxd5 {[%emt 0:01:53]} 25. Nxd5 {[%emt 0:02:36]} Nxd5 {[%emt 0:00:08]} 26. Rxd5 {[%emt 0:00:04]} b6 {[%emt 0:01:02]} 27. a4 {[%emt 0:00:39]} Rd7 {[%emt 0:03:38]} 28. a5 {[%emt 0:01:37]} bxa5 {[%emt 0:00:31]} 29. c5 {[%emt 0:01:16]} f4 {[%emt 0:02:00]} 30. Qe4+ {[%emt 0:00:05]} g6 {[%emt 0:00:49]} 31. c6 {[%emt 0:01:32]} Rc7 {[%emt 0:00:32]} 32. Rxa5 {[%emt 0:00:14]} fxg3 {[%emt 0:00:17]} 33. hxg3 {[%emt 0:02:15]} Qf7 {[%emt 0:00:24]} 34. Qe3 {[%emt 0:00:08]} Qe7 {[%emt 0:01:58]} 35. Rda1 {[%emt 0:01:08]} Rf7 {[%emt 0:00:17]} 36. b4 {[%emt 0:01:41]} Qg5 {[%emt 0:01:10]} 37. Qxg5 {[%emt 0:01:02]} hxg5 {[%emt 0:00:07]} 38. b5 {[%emt 0:00:05]} Kg7 {[%emt 0:01:00]} 39. Rxa7 {[%emt 0:01:08]} Kf6 {[%emt 0:00:20]} 40. Rxc7 {[%emt 0:00:52]} Rxc7 {[%emt 0:00:07]} 41. Rb1 {[%emt 0:00:29]} Rc8 {[%emt 0:00:52]} 42. b6 {[%emt 0:00:06]} 1-0

[Event "FRA-ch Youth U18 2018"]
[Site "Agen"]
[Date "2018.04.16"]
[Round "3"]
[White "Rollot, Florence"]
[Black "Chachiachvili, Mariam"]
[Result "1/2-1/2"]
[ECO "A05"]
[WhiteElo "2042"]
[BlackElo "1752"]
[Annotator "NA RC"]
[PlyCount "124"]
[EventDate "2018.??.??"]
[EventType "swiss"]
[EventCountry "FRA"]
[SourceTitle "playchess.com"]
[Source "ChessBase"]
[SourceQuality "1"]
[TimeControl "5400+30"]

1. Nf3 {[%emt 0:00:00]} Nf6 {[%emt 0:00:24]} 2. c4 {[%emt 0:00:00]} g6 {[%emt 0:00:15]} 3. g3 {[%emt 0:00:00]} Bg7 {[%emt 0:00:06]} 4. Bg2 {[%emt 0:00:00]} d6 {[%emt 0:00:17]} 5. Nc3 {[%emt 0:00:23]} O-O {[%emt 0:00:30]} 6. O-O {[%emt 0:00:25]} e5 {[%emt 0:00:40]} 7. d3 {[%emt 0:02:23]} Nc6 {[%emt 0:00:45]} 8. Rb1 {[%emt 0:01:09]} Bd7 {[%emt 0:00:42] LiveBook: 17 Games} 9. b4 {[%emt 0:02:57] A26: English Opening vs King's Indian with ...Nc6 and d3} a6 {[%emt 0:00:20]} (9... Qc8 10. b5 Nd8 11. Qc2 Bh3 12. Nd5 Nxd5 13. Bxh3 Qxh3 14. cxd5 Qd7 15. Be3 f5 16. Rfc1 f4 17. Bd2 Rc8 18. Rb4 {1-0 (39) Iskandarov,M (2397)-Fedoseev,V (2672) Kocaeli 2014}) 10. a4 {[%emt 0:01:35]} a5 {[%emt 0:04:27]} 11. b5 $1 {[%emt 0:02:49]} Nb4 {[%emt 0:00:14]} 12. Ba3 {[%emt 0:00:57]} c5 {[%emt 0:00:17]} 13. bxc6 {[%emt 0:00:37]} bxc6 {[%emt 0:00:07]} 14. Bxb4 {[%emt 0:00:45]} axb4 {[%emt 0:00:05]} 15. Rxb4 {[%emt 0:00:39]} Qa5 {[%emt 0:00:18]} 16. Qb3 {[%emt 0:04:55]} Rfc8 $146 {[%emt 0:14:45]} ({Predecessor:} 16... Ra7 17. Rb7 Rxb7 18. Qxb7 Qxc3 {0-1 (38) Seeman,T (2429)-Gorgorinis,P (2015) Dos Hermanas 2004}) 17. Ng5 {[%emt 0:07:43]} h6 {[%emt 0:05:54]} 18. Nge4 {[%emt 0:01:30]} Ne8 {[%emt 0:01:20]} 19. Rb7 {[%emt 0:05:49]} Be6 {[%emt 0:05:24]} 20. Nd2 {[%emt 0:17:20]} e4 {[%emt 0:11:41]} 21. Ndb1 {[%emt 0:05:38]} d5 {[%emt 0:07:15]} 22. Qb4 $11 {[%emt 0:12:25]} exd3 {[%emt 0:04:17]} 23. exd3 {[%emt 0:07:01]} dxc4 {[%emt 0:12:47]} 24. dxc4 {[%emt 0:01:54]} Qxb4 {[%emt 0:00:09]} 25. Rxb4 {[%emt 0:00:13]} c5 {[%emt 0:00:25]} 26. Rb6 {[%emt 0:00:45]} Rab8 {[%emt 0:07:26]} 27. Rxb8 {[%emt 0:03:26]} Rxb8 {[%emt 0:00:03]} 28. Nd5 {[%emt 0:00:48]} Nd6 {[%emt 0:02:47]} 29. a5 {[%emt 0:03:16]} Rb2 {[%emt 0:08:36]} 30. a6 {[%emt 0:03:16]} Ra2 {[%emt 0:00:51]} 31. Nc7 {[%emt 0:01:53]} Bxc4 {[%emt 0:00:44]} 32. Rd1 {[%emt 0:05:32]} Bd4 {[%emt 0:01:56]} 33. Nd2 {[%emt 0:04:38]} Bxa6 {[%emt 0:02:04]} 34. Nxa6 {[%emt 0:02:30]} Rxa6 {[%emt 0:00:04]} 35. Nb3 {[%emt 0:00:11]} Ra4 {[%emt 0:06:20]} 36. Bd5 {[%emt 0:00:10]} Rb4 {[%emt 0:01:14]} 37. Kg2 {[%emt 0:00:34]} Nb5 {[%emt 0:00:22]} 38. Re1 {[%emt 0:01:25]} Nc3 {[%emt 0:00:54]} 39. Nxd4 {[%emt 0:00:31]} cxd4 {[%emt 0:01:11]} 40. Re8+ {[%emt 0:00:54]} Kg7 {[%emt 0:00:16]} 41. Bf3 {[%emt 0:00:21]} Kf6 {[%emt 0:01:11]} 42. Rc8 {[%emt 0:00:22]} Rb6 {[%emt 0:01:02]} 43. Rc7 {[%emt 0:00:36]} Rd6 {[%emt 0:00:39]} 44. Kf1 {[%emt 0:00:28]} Nb5 {[%emt 0:00:39]} 45. Rb7 {[%emt 0:00:49]} Nc3 {[%emt 0:00:06]} 46. Ke1 {[%emt 0:00:40]} d3 {[%emt 0:00:35]} 47. Kd2 {[%emt 0:00:21]} Na4 {[%emt 0:00:43]} 48. Rb3 {[%emt 0:00:33]} Nc5 {[%emt 0:00:40]} 49. Rc3 {[%emt 0:00:03]} Na4 {[%emt 0:00:29]} 50. Rc4 {[%emt 0:00:08]} Nb6 {[%emt 0:00:31]} 51. Rb4 {[%emt 0:00:13]} Nd7 {[%emt 0:00:29]} 52. Be4 {[%emt 0:01:32]} Ne5 {[%emt 0:00:39]} 53. f4 {[%emt 0:00:22]} Ng4 {[%emt 0:00:33]} 54. Bxd3 {[%emt 0:00:56]} Nxh2 {[%emt 0:00:24]} 55. Ke2 {[%emt 0:00:27]} Ng4 {[%emt 0:00:20]} 56. Bc4 {[%emt 0:00:28]} h5 {[%emt 0:00:12]} 57. Rb7 {[%emt 0:00:22]} Nh6 {[%emt 0:00:04]} 58. Rc7 {[%emt 0:00:40]} Rb6 {[%emt 0:00:50]} 59. Kf3 {[%emt 0:00:16]} Rb1 {[%emt 0:01:03]} 60. Rc6+ {[%emt 0:00:21]} Kg7 {[%emt 0:00:23]} 61. Rc7 {[%emt 0:00:42]} Re1 62. Kf2 {[%emt 0:00:40]} Ra1 {[%emt 0:01:07]} 1/2-1/2

[Event "FRA-ch Youth U18 2018"]
[Site "Agen"]
[Date "2018.04.16"]
[Round "3"]
[White "Belluire, Beatrice"]
[Black "Lomandong, Noela-Joyce"]
[Result "1/2-1/2"]
[ECO "B06"]
[WhiteElo "1818"]
[BlackElo "2053"]
[Annotator "NA RC"]
[PlyCount "100"]
[EventDate "2018.??.??"]
[EventType "swiss"]
[EventCountry "FRA"]
[SourceTitle "playchess.com"]
[Source "ChessBase"]
[SourceQuality "1"]
[TimeControl "5400+30"]

1. e4 {[%emt 0:00:00]} g6 {[%emt 0:01:53]} 2. d4 {[%emt 0:00:00]} Bg7 {[%emt 0:00:12]} 3. Nc3 {[%emt 0:00:00]} d6 {[%emt 0:01:45]} 4. Be3 {[%emt 0:00:06]} a6 {[%emt 0:01:03]} 5. Qd2 {[%emt 0:06:23]} Nd7 {[%emt 0:00:58]} 6. O-O-O {[%emt 0:03:02]} b5 {[%emt 0:01:37]} 7. f3 {[%emt 0:02:13]} Bb7 {[%emt 0:00:58]} 8. h4 {[%emt 0:01:05]} h5 $11 {[%emt 0:05:56] LiveBook: 70 Games} 9. Nh3 {[%emt 0:01:21]} c6 {[%emt 0:01:52]} 10. Ng5 {[%emt 0:01:21]} Qa5 {[%emt 0:08:38]} 11. Kb1 {[%emt 0:01:27]} Ngf6 {[%emt 0:06:34]} 12. Qf2 {[%emt 0:07:18]} Nh7 {[%emt 0:12:58]} 13. Nxh7 {[%emt 0:11:48]} Rxh7 {[%emt 0:00:13]} 14. e5 {[%emt 0:08:51]} b4 {[%emt 0:08:22]} 15. Ne4 {[%emt 0:00:47]} dxe5 {[%emt 0:16:20]} 16. dxe5 {[%emt 0:01:54]} Bxe5 {[%emt 0:01:46]} 17. Rxd7 {[%emt 0:17:00]} Kxd7 {[%emt 0:00:23]} 18. Bb6 {[%emt 0:00:02]} Qd5 {[%emt 0:00:36]} 19. Be2 {[%emt 0:00:10]} Bd6 {[%emt 0:17:41]} 20. Rd1 {[%emt 0:00:51]} Qe5 {[%emt 0:00:12]} 21. Rxd6+ {[%emt 0:14:33]} exd6 {[%emt 0:01:29]} 22. Bd4 {[%emt 0:00:02]} Qe7 {[%emt 0:02:02]} 23. Nf6+ {[%emt 0:00:21]} Kc7 {[%emt 0:00:17]} 24. Nxh7 {[%emt 0:03:05]} c5 {[%emt 0:01:26]} 25. Bf6 {[%emt 0:02:38]} Qe6 {[%emt 0:00:01]} 26. b3 {[%emt 0:04:00]} Re8 {[%emt 0:04:49]} 27. Bc4 {[%emt 0:00:26]} Qe1+ {[%emt 0:00:47]} 28. Qxe1 Rxe1+ 29. Kb2 {[%emt 0:00:03]} d5 {[%emt 0:00:46]} 30. Bd3 {[%emt 0:00:03]} a5 {[%emt 0:00:34]} 31. Ng5 {[%emt 0:00:52]} a4 {[%emt 0:00:07]} 32. c4 {[%emt 0:05:24]} bxc3+ {[%emt 0:01:39]} 33. Bxc3 {[%emt 0:05:01]} Rg1 {[%emt 0:01:07]} 34. Be5+ {[%emt 0:01:10]} Kb6 {[%emt 0:00:55]} 35. g3 {[%emt 0:01:10]} Rg2+ {[%emt 0:00:27]} 36. Ka3 {[%emt 0:01:50]} axb3 {[%emt 0:00:48]} 37. axb3 {[%emt 0:00:15]} Rd2 {[%emt 0:00:39]} 38. Bb1 {[%emt 0:00:50]} f5 {[%emt 0:00:29]} 39. Bf4 {[%emt 0:00:29]} Rf2 {[%emt 0:00:47]} 40. Bd3 {[%emt 0:01:04]} d4 {[%emt 0:00:36]} 41. Bc4 {[%emt 0:00:45]} Ba6 {[%emt 0:00:37]} 42. Bf7 {[%emt 0:00:43]} Bd3 {[%emt 0:00:12]} 43. b4 {[%emt 0:00:30]} cxb4+ {[%emt 0:00:52]} 44. Kxb4 {[%emt 0:00:05]} Rb2+ {[%emt 0:00:22]} 45. Ka3 {[%emt 0:00:02]} Rf2 {[%emt 0:00:42]} 46. Be5 {[%emt 0:01:25]} Kc5 {[%emt 0:00:30]} 47. Ne6+ {[%emt 0:00:26]} Kd5 {[%emt 0:00:30]} 48. f4 {[%emt 0:00:21]} Ke4 {[%emt 0:00:30]} 49. Nxd4 {[%emt 0:00:37]} Rg2 {[%emt 0:00:17]} 50. Bxg6 Rxg3 1/2-1/2

[Event "FRA-ch Youth U18 2018"]
[Site "Agen"]
[Date "2018.04.16"]
[Round "3"]
[White "Donias, Orlane"]
[Black "Milroy, Melena"]
[Result "0-1"]
[ECO "A46"]
[WhiteElo "1752"]
[BlackElo "1718"]
[Annotator "NA RC"]
[PlyCount "126"]
[EventDate "2018.??.??"]
[EventType "swiss"]
[EventCountry "FRA"]
[SourceTitle "playchess.com"]
[Source "ChessBase"]
[SourceQuality "1"]
[TimeControl "5400+30"]

1. d4 {[%emt 0:00:00]} Nf6 {[%emt 0:00:07]} 2. Nf3 {[%emt 0:00:00]} c5 {[%emt 0:00:41]} 3. e3 {[%emt 0:02:44]} e6 {[%emt 0:00:55]} 4. c4 {[%emt 0:00:46]} g6 {[%emt 0:03:00]} 5. Nc3 {[%emt 0:01:41]} b6 {[%emt 0:04:08]} 6. d5 {[%emt 0:06:11]} exd5 {[%emt 0:00:21]} 7. cxd5 {[%emt 0:00:09]} d6 {[%emt 0:00:12]} 8. e4 {[%emt 0:02:03]} Bg7 {[%emt 0:00:28]} 9. Bb5+ {[%emt 0:02:53]} Nfd7 {[%emt 0:04:00]} 10. Bf4 {[%emt 0:07:04]} Qe7 {[%emt 0:01:15]} 11. Qe2 {[%emt 0:03:58]} O-O {[%emt 0:00:21]} 12. O-O {[%emt 0:00:50]} Nf6 {[%emt 0:02:57]} 13. Rfe1 {[%emt 0:02:07]} Nh5 {[%emt 0:01:12]} 14. Bd2 {[%emt 0:00:46]} a6 {[%emt 0:00:11]} 15. Bd3 {[%emt 0:01:09]} b5 {[%emt 0:00:33]} 16. Rab1 {[%emt 0:05:08]} Bg4 {[%emt 0:00:54]} 17. h3 {[%emt 0:00:48]} Bxf3 {[%emt 0:00:09]} 18. Qxf3 {[%emt 0:00:27]} Nd7 {[%emt 0:00:13]} 19. Bf1 {[%emt 0:03:25]} Ne5 {[%emt 0:08:38]} 20. Qd1 {[%emt 0:02:02]} Qf6 {[%emt 0:06:14]} 21. Qc1 {[%emt 0:03:17]} Qe7 {[%emt 0:07:01]} 22. Be2 {[%emt 0:06:47]} Nf6 {[%emt 0:04:49]} 23. f4 {[%emt 0:05:08]} Ned7 {[%emt 0:00:41]} 24. Bf3 {[%emt 0:00:50]} Ne8 {[%emt 0:05:43]} 25. Nd1 {[%emt 0:04:17]} Nc7 {[%emt 0:01:55]} 26. Nf2 {[%emt 0:02:09]} b4 {[%emt 0:01:52]} 27. Bxb4 {[%emt 0:06:25]} cxb4 {[%emt 0:11:29]} 28. Qxc7 {[%emt 0:00:08]} Rfc8 {[%emt 0:05:41]} 29. Qb7 {[%emt 0:01:58]} a5 {[%emt 0:06:18]} 30. Bg4 {[%emt 0:04:10]} Rd8 {[%emt 0:08:42]} 31. e5 {[%emt 0:09:28]} dxe5 {[%emt 0:05:19]} 32. fxe5 {[%emt 0:00:40]} Qe8 {[%emt 0:00:53]} 33. Bxd7 {[%emt 0:02:55]} Rxd7 {[%emt 0:00:23]} 34. Qb5 {[%emt 0:01:06]} Re7 {[%emt 0:00:58]} 35. Qxe8+ {[%emt 0:05:36]} Raxe8 {[%emt 0:00:07]} 36. Nd3 {[%emt 0:01:03]} Bxe5 {[%emt 0:00:09]} 37. Nxe5 {[%emt 0:00:50]} Rxe5 {[%emt 0:00:06]} 38. Rxe5 {[%emt 0:00:33]} Rxe5 {[%emt 0:00:04]} 39. Rd1 {[%emt 0:00:09]} Kf8 {[%emt 0:00:17]} 40. Kf2 {[%emt 0:00:21]} Ke7 {[%emt 0:00:16]} 41. d6+ {[%emt 0:02:40]} Kd7 {[%emt 0:01:03]} 42. b3 {[%emt 0:01:06]} Rc5 {[%emt 0:00:21]} 43. Rd2 {[%emt 0:00:22]} Rc6 {[%emt 0:00:06]} 44. Ke3 {[%emt 0:01:15]} Rxd6 {[%emt 0:00:27]} 45. Rf2 {[%emt 0:00:28]} Ke6 {[%emt 0:00:57]} 46. Rc2 {[%emt 0:02:22]} f5 {[%emt 0:02:54]} 47. Kf4 {[%emt 0:00:38]} h6 {[%emt 0:00:55]} 48. Ke3 {[%emt 0:01:02]} Kd5 {[%emt 0:02:41]} 49. Rd2+ {[%emt 0:00:23]} Ke5 {[%emt 0:00:10]} 50. Rc2 {[%emt 0:00:24]} g5 {[%emt 0:00:27]} 51. Rc5+ {[%emt 0:00:15]} Rd5 {[%emt 0:00:12]} 52. Rc6 {[%emt 0:00:19]} h5 {[%emt 0:01:23]} 53. Rc8 {[%emt 0:00:35]} f4+ {[%emt 0:00:15]} 54. Ke2 {[%emt 0:00:10]} g4 {[%emt 0:01:28]} 55. hxg4 {[%emt 0:00:31]} hxg4 {[%emt 0:00:03]} 56. Rg8 {[%emt 0:00:28]} Kf5 {[%emt 0:00:24]} 57. Rf8+ {[%emt 0:00:16]} Kg5 {[%emt 0:00:18]} 58. Rg8+ {[%emt 0:00:17]} Kh4 {[%emt 0:00:22]} 59. Rf8 {[%emt 0:00:53]} Kg3 {[%emt 0:00:26]} 60. Rf7 {[%emt 0:00:20]} Rd4 {[%emt 0:00:40]} 61. Rf5 {[%emt 0:00:28]} Kxg2 {[%emt 0:00:15]} 62. Rxa5 {[%emt 0:00:07]} f3+ {[%emt 0:00:29]} 63. Ke3 {[%emt 0:01:11]} Rd1 {[%emt 0:02:49]} 0-1

[Event "FRA-ch Youth U18 2018"]
[Site "Agen"]
[Date "2018.04.16"]
[Round "3"]
[White "El Barbry, Sarah"]
[Black "Salvador, Lucie"]
[Result "1/2-1/2"]
[ECO "C01"]
[WhiteElo "1750"]
[BlackElo "1955"]
[Annotator "NA RC"]
[PlyCount "120"]
[EventDate "2018.??.??"]
[EventType "swiss"]
[EventCountry "FRA"]
[SourceTitle "playchess.com"]
[Source "ChessBase"]
[SourceQuality "1"]
[TimeControl "5400+30"]

1. e4 {[%emt 0:03:32]} e6 {[%emt 0:00:03]} 2. d4 {[%emt 0:00:09]} d5 {[%emt 0:00:05]} 3. exd5 {[%emt 0:00:02]} exd5 {[%emt 0:00:06]} 4. Bd3 {[%emt 0:00:01]} Nf6 {[%emt 0:00:27]} 5. h3 {[%emt 0:03:53]} c5 {[%emt 0:00:41]} 6. c3 {[%emt 0:00:19] C01: French: Exchange Variation} (6. dxc5 Bxc5 7. Nf3 O-O 8. O-O Nc6 9. a3 Ne4 10. Nbd2 Re8 11. Nb3 Bb6 12. Be3 Bxe3 13. fxe3 Bf5 {0-1 (27) Atabayev,M (2492)-Akopian,V (2675) Doha 2016}) 6... Nc6 {[%emt 0:00:44] LiveBook: 3 Games} 7. Nf3 {[%emt 0:01:05]} Bd6 {[%emt 0:03:16]} 8. O-O {[%emt 0:00:23]} h6 $146 {[%emt 0:12:42]} ({Predecessor:} 8... O-O 9. Re1 Qb6 10. b3 Be6 11. Na3 Qa5 12. dxc5 Qxc3 13. Be3 Qa5 14. Nb5 Bb8 15. a3 a6 16. Nd6 Qc7 17. Qc2 h6 18. Qc1 Ne4 19. Bxh6 Nxc5 20. Bxg7 Nxd3 21. Qh6 {1-0 (21) Todorov,T (2504)-Astengo,M (2075) Bergamo 2008}) 9. Re1+ {[%emt 0:02:33]} Be6 {[%emt 0:03:13]} 10. Be3 {[%emt 0:05:31]} Qb6 {[%emt 0:06:07]} 11. dxc5 {[%emt 0:01:25]} Bxc5 {[%emt 0:00:08]} 12. Bxc5 {[%emt 0:00:45]} Qxc5 {[%emt 0:00:10]} 13. Nbd2 {[%emt 0:00:45]} O-O {[%emt 0:02:06]} 14. Nb3 {[%emt 0:00:21]} Qb6 {[%emt 0:02:41]} 15. Qd2 {[%emt 0:03:09]} Ne4 {[%emt 0:07:26]} 16. Bxe4 {[%emt 0:08:14]} dxe4 {[%emt 0:00:05]} 17. Rxe4 {[%emt 0:01:23]} Bxb3 18. axb3 Qxb3 {[%emt 0:06:41]} 19. Rae1 {[%emt 0:03:22]} Rad8 {[%emt 0:02:41]} 20. Qc1 {[%emt 0:02:44]} Rd6 {[%emt 0:03:52]} 21. Kh2 {[%emt 0:28:43]} b6 $11 {[%emt 0:17:32]} 22. Ne5 {[%emt 0:12:59]} Na5 {[%emt 0:04:28]} 23. Rb4 {[%emt 0:03:30]} Qa2 {[%emt 0:05:31]} 24. Qf4 {[%emt 0:01:58]} Rfd8 {[%emt 0:05:53]} 25. Qg3 {[%emt 0:04:18]} f5 {[%emt 0:04:39]} 26. Ng6 {[%emt 0:01:27]} Qf7 {[%emt 0:01:00]} 27. Ne5 {[%emt 0:03:09]} Qf6 {[%emt 0:01:57]} 28. Rf4 {[%emt 0:01:43]} Nc6 {[%emt 0:01:16]} 29. Nxc6 {[%emt 0:01:18]} Rxc6 {[%emt 0:00:02]} 30. Qf3 {[%emt 0:00:36]} Rc5 {[%emt 0:00:40]} 31. Qe3 {[%emt 0:01:29]} Rcd5 {[%emt 0:02:53]} 32. Qe7 {[%emt 0:00:40]} Qxe7 33. Rxe7 a5 {[%emt 0:04:27]} 34. Re6 {[%emt 0:01:14]} Rb8 {[%emt 0:01:38]} 35. c4 {[%emt 0:01:52]} Rc5 {[%emt 0:00:22]} 36. g4 {[%emt 0:01:28]} b5 {[%emt 0:01:37]} 37. gxf5 {[%emt 0:00:44]} Rxc4 {[%emt 0:00:34]} 38. Rf3 {[%emt 0:00:59]} Kf7 {[%emt 0:00:31]} 39. Ra6 {[%emt 0:00:05]} a4 {[%emt 0:00:30]} 40. Ra7+ {[%emt 0:00:14]} Kf6 {[%emt 0:00:22]} 41. Ra6+ {[%emt 0:00:15]} Ke5 {[%emt 0:00:44]} 42. Kg3 {[%emt 0:00:09]} Rb4 {[%emt 0:00:39]} 43. Ra7 {[%emt 0:01:42]} Rg8 {[%emt 0:00:24]} 44. Re7+ {[%emt 0:00:14]} Kd5 {[%emt 0:00:46]} 45. Re2 {[%emt 0:00:04]} h5 {[%emt 0:00:35]} 46. h4 {[%emt 0:00:55]} Rf8 {[%emt 0:00:24]} 47. Rd2+ {[%emt 0:00:25]} Ke5 {[%emt 0:00:19]} 48. Re2+ {[%emt 0:00:06]} Kd6 {[%emt 0:00:43]} 49. Rd3+ {[%emt 0:00:14]} Kc5 {[%emt 0:00:15]} 50. Rf3 {[%emt 0:00:41]} Rg4+ {[%emt 0:00:39]} 51. Kh3 {[%emt 0:00:01]} Rd8 {[%emt 0:00:46]} 52. f6 {[%emt 0:00:15]} gxf6 {[%emt 0:00:20]} 53. Rxf6 {[%emt 0:00:21]} Rd3+ {[%emt 0:00:36]} 54. f3 {[%emt 0:00:02]} Rgd4 {[%emt 0:00:40]} 55. Rf5+ {[%emt 0:01:32]} Kb4 {[%emt 0:00:15]} 56. Kg3 {[%emt 0:00:12]} Rg4+ {[%emt 0:00:29]} 57. Kh3 {[%emt 0:00:12]} Rgd4 {[%emt 0:00:45]} 58. Kg3 {[%emt 0:00:01]} Rg4+ {[%emt 0:00:27]} 59. Kh3 {[%emt 0:00:01]} Rgd4 {[%emt 0:00:17]} 60. Kg3 {[%emt 0:00:09]} Rg4+ {[%emt 0:00:06]} 1/2-1/2